fUSD/lending_fUSD_20250105
["ID","MTS","AMOUNT","RATE_DAILY","PERIOD"]
[347732005,1736086266016,-800.67,9.315e-05,2]
[347732006,1736086266026,-500.0,9.315e-05,2]
[347732007,1736086266036,-500.0,9.315e-05,2]
[347732008,1736086266045,-781.43,9.315e-05,2]
[347732009,1736086266054,-1250.77,9.315e-05,2]
[347732010,1736086266064,-500.0,9.315e-05,2]
[347732011,1736086266074,-766.06,9.315e-05,2]
[347732012,1736086266083,-955.76,9.315e-05,2]
[347732013,1736086266093,-620.83,9.315e-05,2]
[347732014,1736086266102,-838.48,9.315e-05,2]
[347732015,1736086266111,-809.23,9.315e-05,2]
[347732016,1736086266121,-897.32,9.315e-05,2]
[347732017,1736086266131,-907.19,9.315e-05,2]
[347732018,1736086266140,-500.0,9.315e-05,2]
[347732019,1736086266149,-658.24,9.315e-05,2]
[347732020,1736086266159,-500.0,9.315e-05,2]
[347732021,1736086266168,-1245.35,9.315e-05,2]
[347732022,1736086266177,-853.22,9.315e-05,2]
[347732023,1736086266186,-500.0,9.315e-05,2]
[347732024,1736086266196,-871.01,9.315e-05,2]
[347732025,1736086266205,-744.7,9.315e-05,2]
[347732026,1736086266215,-1600.74,9.315e-05,2]
[347732027,1736086266224,-500.0,9.315e-05,2]
[347732028,1736086266237,-500.0,9.315e-05,2]
[347732029,1736086266246,-593.39,9.315e-05,2]
[347732030,1736086266255,-500.0,9.315e-05,2]
[347732031,1736086266264,-500.0,9.315e-05,2]
[347732032,1736086266275,-1032.01,9.315e-05,2]
[347732033,1736086266284,-2363.51,9.315e-05,2]
[347732034,1736086266294,-1063.17,9.315e-05,2]
[347732035,1736086266303,-500.0,9.315e-05,2]
[347732036,1736086266314,-500.0,9.315e-05,2]
[347732037,1736086266323,-1177.99,9.315e-05,2]
[347732038,1736086266333,-1161.66,9.315e-05,2]
[347732039,1736086266341,-753.28,9.315e-05,2]
[347732040,1736086266350,-500.0,9.315e-05,2]
[347732041,1736086266360,-1107.81,9.315e-05,2]
[347732042,1736086266370,-978.31,9.315e-05,2]
[347732043,1736086266380,-607.43,9.315e-05,2]
[347732044,1736086266390,-500.0,9.315e-05,2]
[347732045,1736086266400,-802.04,9.315e-05,2]
[347732046,1736086266410,-500.0,9.315e-05,2]
[347732047,1736086266419,-622.25,9.315e-05,2]
[347732048,1736086266428,-1694.51,9.315e-05,2]
[347732049,1736086266438,-500.0,9.315e-05,2]
[347732050,1736086266447,-500.0,9.315e-05,2]
[347732051,1736086266457,-500.32,9.315e-05,2]
[347732052,1736086266467,-1454.15,9.315e-05,2]
[347732053,1736086266477,-1459.27,9.315e-05,2]
[347732054,1736086266486,-500.0,9.315e-05,2]
[347732055,1736086266495,-500.0,9.315e-05,2]
[347732056,1736086266503,-500.0,9.315e-05,2]
[347732057,1736086266513,-500.0,9.315e-05,2]
[347732058,1736086266522,-897.95,9.315e-05,2]
[347732059,1736086266531,-690.36,9.315e-05,2]
[347732060,1736086266541,-1009.99,9.315e-05,2]
[347732061,1736086266551,-500.0,9.315e-05,2]
[347732062,1736086266561,-1353.36,9.315e-05,2]
[347732063,1736086266570,-500.0,9.315e-05,2]
[347732064,1736086266579,-500.0,9.315e-05,2]
[347732065,1736086266589,-1505.77,9.315e-05,2]
[347732066,1736086266598,-877.09,9.315e-05,2]
[347732067,1736086266607,-500.0,9.315e-05,2]
[347732068,1736086266618,-500.0,9.315e-05,2]
[347732069,1736086266627,-673.85,9.315e-05,2]
[347732070,1736086266637,-500.0,9.315e-05,2]
[347732071,1736086266646,-1520.95,9.315e-05,2]
[347732072,1736086266656,-640.51,9.315e-05,2]
[347732073,1736086266665,-500.0,9.315e-05,2]
[347732074,1736086266675,-1468.66,9.315e-05,2]
[347732075,1736086266684,-792.2,9.315e-05,2]
[347732076,1736086266693,-1958.42,9.315e-05,2]
[347732077,1736086266703,-500.0,9.315e-05,2]
[347732078,1736086266711,-500.0,9.315e-05,2]
[347732079,1736086266721,-500.0,9.315e-05,2]
[347732080,1736086266731,-733.58,9.315e-05,2]
[347732081,1736086266740,-597.04,9.315e-05,2]
[347732082,1736086266749,-500.0,9.315e-05,2]
[347732083,1736086266759,-876.17,9.315e-05,2]
[347732084,1736086266768,-500.0,9.315e-05,2]
[347732085,1736086266777,-500.0,9.315e-05,2]
[347732086,1736086266787,-1788.82,9.315e-05,2]
[347732087,1736086266797,-760.3,9.315e-05,2]
[347732088,1736086266807,-772.33,9.315e-05,2]
[347732089,1736086266817,-767.2,9.315e-05,2]
[347732090,1736086266826,-3274.7,9.315e-05,2]
[347732091,1736086266835,-500.0,9.315e-05,2]
[347732092,1736086266845,-500.0,9.315e-05,2]
[347732093,1736086266855,-757.59,9.315e-05,2]
[347732094,1736086266865,-940.87,9.315e-05,2]
[347732095,1736086266874,-664.98,9.315e-05,2]
[347732096,1736086266884,-500.0,9.315e-05,2]
[347732097,1736086266893,-500.0,9.315e-05,2]
[347732098,1736086266903,-427.59,9.315e-05,2]
[347732099,1736086266912,-500.0,9.315e-05,2]
[347732100,1736086266922,-1703.87,9.315e-05,2]
[347732101,1736086266931,-2197.06,9.315e-05,2]
[347732102,1736086266941,-500.0,9.315e-05,2]
[347732103,1736086266950,-500.0,9.315e-05,2]
[347732104,1736086266959,-899.43,9.315e-05,2]
[347732105,1736086266968,-2373.8,9.315e-05,2]
[347732106,1736086266978,-278.22031348,9.315e-05,2]
[347732107,1736086266987,-1005.15,9.315e-05,2]
[347732108,1736086266997,-508.31,9.315e-05,2]
[347732109,1736086267007,-500.0,9.315e-05,2]
[347732110,1736086267016,-500.0,9.315e-05,2]
[347732111,1736086267026,-500.0,9.315e-05,2]
[347732112,1736086267035,-500.0,9.315e-05,2]
[347732113,1736086267045,-335.78910393,9.315e-05,2]
[347732114,1736086267054,-500.0,9.315e-05,2]
[347732115,1736086267064,-2889.58,9.315e-05,2]
[347732116,1736086267073,-500.0,9.315e-05,2]
[347732117,1736086267083,-911.64,9.315e-05,2]
[347732118,1736086267092,-2174.62,9.315e-05,2]
[347732119,1736086267102,-1428.62,9.315e-05,2]
[347732120,1736086267112,-655.98,9.315e-05,2]
[347732121,1736086267121,-500.0,9.315e-05,2]
[347732122,1736086267130,-500.0,9.315e-05,2]
[347732123,1736086267140,-500.0,9.315e-05,2]
[347732124,1736086267150,-704.61,9.315e-05,2]
[347732125,1736086267160,-901.88,9.315e-05,2]
[347732126,1736086267170,-599.03,9.315e-05,2]
[347732127,1736086267179,-1497.71,9.315e-05,2]
[347732128,1736086267189,-477.0,9.315e-05,2]
[347732129,1736086267199,-500.0,9.315e-05,2]
[347732130,1736086267208,-500.0,9.315e-05,2]
[347732131,1736086267218,-1229.08,9.315e-05,2]
[347732132,1736086267227,-500.0,9.315e-05,2]
[347732133,1736086267240,-589.79,9.315e-05,2]
[347732134,1736086267249,-500.0,9.315e-05,2]
[347732135,1736086267258,-2359.51,9.315e-05,2]
[347732136,1736086267268,-500.0,9.315e-05,2]
[347732137,1736086267279,-500.0,9.315e-05,2]
[347732138,1736086267288,-2408.08,9.315e-05,2]
[347732139,1736086267298,-560.21,9.315e-05,2]
[347732140,1736086267310,-1581.41,9.315e-05,2]
[347732141,1736086267320,-500.0,9.315e-05,2]
[347732142,1736086267329,-638.7,9.315e-05,2]
[347732143,1736086267338,-500.0,9.315e-05,2]
[347732144,1736086267348,-500.0,9.315e-05,2]
[347732145,1736086267357,-1032.99,9.315e-05,2]
[347732146,1736086267368,-500.0,9.315e-05,2]
[347732147,1736086267379,-3209.15,9.315e-05,2]
[347732148,1736086267390,-837.18,9.315e-05,2]
[347732149,1736086267400,-1042.34,9.315e-05,2]
[347732150,1736086267410,-504.24,9.315e-05,2]
[347732151,1736086267420,-1100.95,9.315e-05,2]
[347732152,1736086267430,-500.0,9.315e-05,2]
[347732153,1736086267441,-500.0,9.315e-05,2]
[347732154,1736086267451,-974.42,9.315e-05,2]
[347732155,1736086267460,-1961.68,9.315e-05,2]
[347732156,1736086267469,-1049.33,9.315e-05,2]
[347732157,1736086267479,-1178.04,9.315e-05,2]
[347732158,1736086267489,-500.0,9.315e-05,2]
[347732159,1736086267499,-1749.25,9.315e-05,2]
[347732160,1736086267509,-930.1,9.315e-05,2]
[347732161,1736086267519,-500.0,9.315e-05,2]
[347732162,1736086267529,-1008.32,9.315e-05,2]
[347732163,1736086267539,-500.0,9.315e-05,2]
[347732164,1736086267549,-500.0,9.315e-05,2]
[347732165,1736086267558,-683.59,9.315e-05,2]
[347732166,1736086267568,-500.0,9.315e-05,2]
[347732167,1736086267578,-500.0,9.315e-05,2]
[347732168,1736086267589,-500.0,9.315e-05,2]
[347732169,1736086267599,-1412.79,9.315e-05,2]
[347732170,1736086267609,-500.0,9.315e-05,2]
[347732171,1736086267621,-832.75,9.315e-05,2]
[347732172,1736086267630,-500.0,9.315e-05,2]
[347732173,1736086267640,-2825.82,9.315e-05,2]
[347732174,1736086267650,-822.24,9.315e-05,2]
[347732175,1736086267660,-500.0,9.315e-05,2]
[347732176,1736086267670,-500.0,9.315e-05,2]
[347732177,1736086267680,-1523.287914,9.315e-05,2]
[347732178,1736086267689,-500.0,9.315e-05,2]
[347732179,1736086267700,-500.0,9.315e-05,2]
[347732180,1736086267710,-589.48,9.315e-05,2]
[347732181,1736086267720,-500.0,9.315e-05,2]
[347732182,1736086267730,-870.32,9.315e-05,2]
[347732183,1736086267740,-3147.42,9.315e-05,2]
[347732184,1736086267750,-1678.38,9.315e-05,2]
[347732185,1736086267759,-855.83,9.315e-05,2]
[347732186,1736086267769,-511.8,9.315e-05,2]
[347732187,1736086267779,-500.0,9.315e-05,2]
[347732188,1736086267788,-905.92,9.315e-05,2]
[347732189,1736086267798,-500.0,9.315e-05,2]
[347732190,1736086267808,-500.0,9.315e-05,2]
[347732191,1736086267817,-835.26,9.315e-05,2]
[347732192,1736086267827,-500.0,9.315e-05,2]
[347732193,1736086267837,-815.39,9.315e-05,2]
[347732194,1736086267847,-919.05,9.315e-05,2]
[347732195,1736086267856,-521.7,9.315e-05,2]
[347732196,1736086267868,-632.46,9.315e-05,2]
[347732197,1736086267878,-500.0,9.315e-05,2]
[347732198,1736086267888,-1525.261953,9.315e-05,2]
[347732199,1736086267898,-500.0,9.315e-05,2]
[347732200,1736086267908,-1035.87,9.315e-05,2]
[347732201,1736086267918,-500.0,9.315e-05,2]
[347732202,1736086267928,-517.08,9.315e-05,2]
[347732203,1736086267937,-932.91,9.315e-05,2]
[347732204,1736086267948,-500.0,9.315e-05,2]
[347732205,1736086267958,-650.48,9.315e-05,2]
[347732206,1736086267968,-1005.75,9.315e-05,2]
[347732207,1736086267977,-500.0,9.315e-05,2]
[347732208,1736086267987,-500.0,9.315e-05,2]
[347732209,1736086267997,-1429.58,9.315e-05,2]
[347732210,1736086268007,-1158.29,9.315e-05,2]
[347732211,1736086268018,-529.27,9.315e-05,2]
[347732212,1736086268028,-519.69,9.315e-05,2]
[347732213,1736086268038,-500.0,9.315e-05,2]
[347732214,1736086268048,-2958.09,9.315e-05,2]
[347732215,1736086268059,-1200.34,9.315e-05,2]
[347732216,1736086268069,-1501.22,9.315e-05,2]
[347732217,1736086268079,-500.0,9.315e-05,2]
[347732218,1736086268089,-5860.52,9.315e-05,2]
[347732219,1736086268099,-977.58,9.315e-05,2]
[347732220,1736086268109,-500.0,9.315e-05,2]
[347732221,1736086268119,-500.0,9.315e-05,2]
[347732222,1736086268129,-3536.32,9.315e-05,2]
[347732223,1736086268139,-678.69,9.315e-05,2]
[347732224,1736086268149,-628.69,9.315e-05,2]
[347732225,1736086268159,-3332.56,9.315e-05,2]
[347732226,1736086268168,-500.0,9.315e-05,2]
[347732227,1736086268178,-1935.77,9.315e-05,2]
[347732228,1736086268188,-500.0,9.315e-05,2]
[347732229,1736086268198,-504.51,9.315e-05,2]
[347732230,1736086268208,-879.4,9.315e-05,2]
[347732231,1736086268217,-1311.86,9.315e-05,2]
[347732232,1736086268227,-1630.51,9.315e-05,2]
[347732233,1736086268240,-519.6,9.315e-05,2]
[347732234,1736086268249,-500.0,9.315e-05,2]
[347732235,1736086268259,-9308.75,9.315e-05,2]
[347732236,1736086268269,-1213.07,9.315e-05,2]
[347732237,1736086268279,-500.0,9.315e-05,2]
[347732238,1736086268289,-500.0,9.315e-05,2]
[347732239,1736086268299,-151.0,9.315e-05,2]
[347732240,1736086268309,-3435.58,9.315e-05,2]
[347732241,1736086268319,-4669.0,9.315e-05,2]
[347732242,1736086268329,-1489.62,9.315e-05,2]
[347732243,1736086268338,-1597.97,9.315e-05,2]
[347732244,1736086268348,-5012.35,9.315e-05,2]
[347732245,1736086268358,-1263.16,9.315e-05,2]
[347732246,1736086268369,-2078.73,9.315e-05,2]
[347732247,1736086268379,-500.0,9.315e-05,2]
[347732248,1736086268389,-500.0,9.315e-05,2]
[347732249,1736086268398,-500.0,9.315e-05,2]
[347732250,1736086268408,-2864.48,9.315e-05,2]
[347732251,1736086268418,-1249.3,9.315e-05,2]
[347732252,1736086268428,-2311.19,9.315e-05,2]
[347732253,1736086268438,-513.24,9.315e-05,2]
[347732254,1736086268447,-1964.09,9.315e-05,2]
[347732255,1736086268457,-2634.69,9.315e-05,2]
[347732256,1736086268467,-1657.78,9.315e-05,2]
[347732257,1736086268476,-574.02,9.315e-05,2]
[347732258,1736086268486,-500.0,9.315e-05,2]
[347732259,1736086268495,-5089.6,9.315e-05,2]
[347732260,1736086268505,-721.81,9.315e-05,2]
[347732261,1736086268515,-500.0,9.315e-05,2]
[347732262,1736086268524,-500.0,9.315e-05,2]
[347732263,1736086268535,-500.0,9.315e-05,2]
[347732264,1736086268544,-500.0,9.315e-05,2]
[347732265,1736086268554,-2656.05,9.315e-05,2]
[347732266,1736086268564,-16233.05,9.315e-05,2]
[347732267,1736086268574,-500.0,9.315e-05,2]
[347732268,1736086268583,-3323.05,9.315e-05,2]
[347732269,1736086268593,-500.0,9.315e-05,2]
[347732270,1736086268602,-6311.87,9.315e-05,2]
[347732271,1736086268612,-952.05,9.315e-05,2]
[347732272,1736086268622,-500.0,9.315e-05,2]
[347732273,1736086268632,-500.0,9.315e-05,2]
[347732274,1736086268641,-500.0,9.315e-05,2]
[347732275,1736086268651,-2832.75,9.315e-05,2]
[347732276,1736086268661,-500.0,9.315e-05,2]
[347732277,1736086268671,-1869.42,9.315e-05,2]
[347732278,1736086268681,-500.0,9.315e-05,2]
[347732279,1736086268690,-500.0,9.315e-05,2]
[347732280,1736086268699,-994.54,9.315e-05,2]
[347732281,1736086268709,-500.0,9.315e-05,2]
[347732282,1736086268719,-1239.18,9.315e-05,2]
[347732283,1736086268729,-500.0,9.315e-05,2]
[347732284,1736086268738,-1009.28,9.315e-05,2]
[347732285,1736086268747,-1207.47,9.315e-05,2]
[347732286,1736086268757,-6267.41,9.315e-05,2]
[347732287,1736086268767,-1569.79,9.315e-05,2]
[347732288,1736086268777,-1589.36,9.315e-05,2]
[347732289,1736086268787,-500.0,9.315e-05,2]
[347732290,1736086268797,-500.0,9.315e-05,2]
[347732291,1736086268807,-500.0,9.315e-05,2]
[347732292,1736086268817,-500.0,9.315e-05,2]
[347732293,1736086268827,-1024.17,9.315e-05,2]
[347732294,1736086268836,-2588.57,9.315e-05,2]
[347732295,1736086268846,-896.58,9.315e-05,2]
[347732296,1736086268856,-7016.37,9.315e-05,2]
[347732297,1736086268868,-500.0,9.315e-05,2]
[347732298,1736086268878,-500.0,9.315e-05,2]
[347732299,1736086268888,-671.19,9.315e-05,2]
[347732300,1736086268898,-4111.43,9.315e-05,2]
[347732301,1736086268908,-500.0,9.315e-05,2]
[347732302,1736086268919,-4240.05,9.315e-05,2]
[347732303,1736086268929,-929.79,9.315e-05,2]
[347732304,1736086268939,-605.42,9.315e-05,2]
[347732305,1736086268949,-3907.13,9.315e-05,2]
[347732306,1736086268959,-7031.39,9.315e-05,2]
[347732307,1736086268969,-500.0,9.315e-05,2]
[347732308,1736086268979,-500.0,9.315e-05,2]
[347732309,1736086268989,-790.23,9.315e-05,2]
[347732310,1736086268999,-1387.02,9.315e-05,2]
[347732311,1736086269010,-2252.76,9.315e-05,2]
[347732312,1736086269020,-823.31,9.315e-05,2]
[347732313,1736086269030,-2324.58,9.315e-05,2]
[347732314,1736086269039,-500.0,9.315e-05,2]
[347732315,1736086269050,-500.0,9.315e-05,2]
[347732316,1736086269060,-716.23,9.315e-05,2]
[347732317,1736086269070,-500.0,9.315e-05,2]
[347732318,1736086269080,-3251.01,9.315e-05,2]
[347732319,1736086269090,-500.0,9.315e-05,2]
[347732320,1736086269100,-1363.75,9.315e-05,2]
[347732321,1736086269111,-500.0,9.315e-05,2]
[347732322,1736086269124,-596.77,9.315e-05,2]
[347732323,1736086269135,-5143.92,9.315e-05,2]
[347732324,1736086269382,-500.0,9.315e-05,2]
[347732325,1736086269393,-500.0,9.315e-05,2]
[347732326,1736086269404,-1331.41,9.315e-05,2]
[347732327,1736086269414,-6239.8,9.315e-05,2]
[347732328,1736086269424,-500.0,9.315e-05,2]
[347732329,1736086269434,-500.0,9.315e-05,2]
[347732330,1736086269444,-6109.07,9.315e-05,2]
[347732331,1736086269454,-8535.66,9.315e-05,2]
[347732332,1736086269464,-3488.16,9.315e-05,2]
[347732333,1736086269474,-2449.34,9.315e-05,2]
[347732334,1736086269483,-500.0,9.315e-05,2]
[347732335,1736086269493,-1868.76,9.315e-05,2]
[347732336,1736086269503,-500.0,9.315e-05,2]
[347732337,1736086269512,-7071.13,9.315e-05,2]
[347732338,1736086269522,-500.0,9.315e-05,2]
[347732339,1736086269531,-4269.26,9.315e-05,2]
[347732340,1736086269542,-1810.81,9.315e-05,2]
[347732341,1736086269552,-2209.49,9.315e-05,2]
[347732342,1736086269562,-841.79,9.315e-05,2]
[347732343,1736086269572,-1541.47,9.315e-05,2]
[347732344,1736086269581,-3729.17,9.315e-05,2]
[347732345,1736086269591,-1708.96,9.315e-05,2]
[347732346,1736086269600,-2379.7,9.315e-05,2]
[347732347,1736086269610,-500.0,9.315e-05,2]
[347732348,1736086269623,-1654.18,9.315e-05,2]
[347732349,1736086269632,-10522.04,9.315e-05,2]
[347732350,1736086269641,-2051.31,9.315e-05,2]
[347732351,1736086269651,-4321.58,9.315e-05,2]
[347732352,1736086269661,-1819.97,9.315e-05,2]
[347732353,1736086269671,-3465.08,9.315e-05,2]
[347732354,1736086269681,-294.31,9.315e-05,2]
[347732355,1736086269691,-562.35,9.315e-05,2]
[347732356,1736086269701,-2042.12,9.315e-05,2]
[347732357,1736086269711,-500.0,9.315e-05,2]
[347732358,1736086269721,-945.76,9.315e-05,2]
[347732359,1736086269731,-777.63,9.315e-05,2]
[347732360,1736086269741,-595.33,9.315e-05,2]
[347732361,1736086269751,-500.0,9.315e-05,2]
[347732362,1736086269761,-1666.12,9.315e-05,2]
[347732363,1736086269770,-2741.12,9.315e-05,2]
[347732364,1736086269779,-500.0,9.315e-05,2]
[347732365,1736086269788,-7347.35,9.315e-05,2]
[347732366,1736086269799,-1040.91,9.315e-05,2]
[347732367,1736086269809,-702.43,9.315e-05,2]
[347732368,1736086269820,-989.73,9.315e-05,2]
[347732369,1736086269830,-1063.03,9.315e-05,2]
[347732370,1736086269840,-804.87,9.315e-05,2]
[347732371,1736086269851,-2301.74,9.315e-05,2]
[347732372,1736086269861,-3057.33,9.315e-05,2]
[347732373,1736086269872,-525.03662316,9.315e-05,2]
[347732374,1736086269882,-798.46,9.315e-05,2]
[347732375,1736086269893,-4392.68,9.315e-05,2]
[347732376,1736086269903,-1986.58,9.315e-05,2]
[347732377,1736086269913,-500.0,9.315e-05,2]
[347732378,1736086269923,-2929.94,9.315e-05,2]
[347732379,1736086269932,-899.63,9.315e-05,2]
[347732380,1736086269941,-736.62,9.315e-05,2]
[347732381,1736086269952,-956.97,9.315e-05,2]
[347732382,1736086269962,-2240.63,9.315e-05,2]
[347732383,1736086269973,-1666.12,9.315e-05,2]
[347732384,1736086269982,-500.0,9.315e-05,2]
[347732385,1736086269992,-3157.56,9.315e-05,2]
[347732386,1736086270002,-500.0,9.315e-05,2]
[347732387,1736086270013,-1129.82,9.315e-05,2]
[347732388,1736086270022,-1714.77,9.315e-05,2]
[347732389,1736086270032,-500.0,9.315e-05,2]
[347732390,1736086270042,-500.0,9.315e-05,2]
[347732391,1736086270052,-799.02,9.315e-05,2]
[347732392,1736086270062,-500.0,9.315e-05,2]
[347732393,1736086270073,-1112.43,9.315e-05,2]
[347732394,1736086270083,-5906.8,9.315e-05,2]
[347732395,1736086270093,-500.0,9.315e-05,2]
[347732396,1736086270103,-257.77920255,9.315e-05,2]
[347732397,1736086270115,-1629.2,9.315e-05,2]
[347732398,1736086270124,-1977.81,9.315e-05,2]
[347732399,1736086270134,-747.98,9.315e-05,2]
[347732400,1736086270144,-1925.38,9.315e-05,2]
[347732401,1736086270154,-1258.69,9.315e-05,2]
[347732402,1736086270163,-1195.92,9.315e-05,2]
[347732403,1736086270173,-407.06,9.5e-05,2]
[347732404,1736086270183,-293.0,9.534e-05,2]
[347732405,1736086270192,-500.0,9.589e-05,2]
[347732406,1736086270202,-500.0,9.589e-05,2]
[347732407,1736086270211,-500.0,9.589e-05,2]
[347732408,1736086270221,-500.0,9.589e-05,2]
[347732409,1736086270230,-690.85,9.589e-05,2]
[347732410,1736086270244,-500.0,9.589e-05,2]
[347732411,1736086270254,-500.0,9.589e-05,2]
[347732412,1736086270264,-500.0,9.589e-05,2]
[347732413,1736086270274,-1085.7,9.589e-05,2]
[347732414,1736086270286,-720.82,9.589e-05,2]
[347732415,1736086270296,-554.43,9.589e-05,2]
[347732416,1736086270306,-500.0,9.589e-05,2]
[347732417,1736086270316,-563.76,9.589e-05,2]
[347732418,1736086270326,-500.0,9.589e-05,2]
[347732419,1736086270336,-500.0,9.589e-05,2]
[347732420,1736086270346,-500.0,9.589e-05,2]
[347732421,1736086270356,-500.0,9.589e-05,2]
[347732422,1736086270367,-892.7,9.589e-05,2]
[347732423,1736086270377,-531.08,9.589e-05,2]
[347732424,1736086270386,-500.0,9.589e-05,2]
[347732425,1736086270396,-500.0,9.589e-05,2]
[347732426,1736086270406,-500.0,9.589e-05,2]
[347732427,1736086270415,-500.0,9.589e-05,2]
[347732428,1736086270425,-500.0,9.589e-05,2]
[347732429,1736086270437,-500.0,9.589e-05,2]
[347732430,1736086270446,-740.92,9.589e-05,2]
[347732431,1736086270455,-500.0,9.589e-05,2]
[347732432,1736086270464,-500.0,9.589e-05,2]
[347732433,1736086270474,-2696.37,9.589e-05,2]
[347732434,1736086270484,-5172.3,9.589e-05,2]
[347732435,1736086270493,-500.0,9.589e-05,2]
[347732436,1736086270503,-500.0,9.589e-05,2]
[347732437,1736086270512,-500.0,9.589e-05,2]
[347732438,1736086270522,-3610.4,9.589e-05,2]
[347732439,1736086270531,-500.0,9.589e-05,2]
[347732440,1736086270541,-1720.92,9.589e-05,2]
[347732441,1736086270551,-500.0,9.589e-05,2]
[347732442,1736086270560,-500.0,9.589e-05,2]
[347732443,1736086270570,-563.17,9.589e-05,2]
[347732444,1736086270579,-500.0,9.589e-05,2]
[347732445,1736086270589,-9470.22,9.589e-05,2]
[347732446,1736086270598,-826.83,9.589e-05,2]
[347732447,1736086270607,-3794.49,9.589e-05,2]
[347732448,1736086270618,-500.0,9.589e-05,2]
[347732449,1736086270627,-500.0,9.589e-05,2]
[347732450,1736086270637,-6784.81,9.589e-05,2]
[347732451,1736086270647,-500.0,9.589e-05,2]
[347732452,1736086270657,-588.06,9.589e-05,2]
[347732453,1736086270668,-500.0,9.589e-05,2]
[347732454,1736086270678,-500.0,9.589e-05,2]
[347732455,1736086270687,-500.0,9.589e-05,2]
[347732456,1736086270697,-500.0,9.589e-05,2]
[347732457,1736086270706,-794.51,9.589e-05,2]
[347732458,1736086270716,-500.0,9.589e-05,2]
[347732459,1736086270742,-500.0,9.589e-05,2]
[347732460,1736086270763,-2104.73,9.589e-05,2]
[347732461,1736086270775,-681.56,9.589e-05,2]
[347732462,1736086270785,-500.0,9.589e-05,2]
[347732463,1736086270795,-500.0,9.589e-05,2]
[347732464,1736086270805,-1028.13,9.589e-05,2]
[347732465,1736086270814,-500.0,9.589e-05,2]
[347732466,1736086270823,-500.0,9.589e-05,2]
[347732467,1736086270833,-2275.82,9.589e-05,2]
[347732468,1736086270843,-799.97,9.589e-05,2]
[347732469,1736086270853,-500.0,9.589e-05,2]
[347732470,1736086270863,-500.0,9.589e-05,2]
[347732471,1736086270874,-4126.42,9.589e-05,2]
[347732472,1736086270883,-2155.22,9.589e-05,2]
[347732473,1736086270893,-904.05,9.589e-05,2]
[347732474,1736086270903,-500.0,9.589e-05,2]
[347732475,1736086270912,-1274.18,9.589e-05,2]
[347732476,1736086270922,-500.0,9.589e-05,2]
[347732477,1736086270931,-1646.52,9.589e-05,2]
[347732478,1736086270942,-649.75,9.589e-05,2]
[347732479,1736086270951,-500.0,9.589e-05,2]
[347732480,1736086270962,-500.0,9.589e-05,2]
[347732481,1736086270972,-1698.25,9.589e-05,2]
[347732482,1736086270982,-726.75,9.589e-05,2]
[347732483,1736086270991,-1175.56,9.589e-05,2]
[347732484,1736086271001,-1006.34,9.589e-05,2]
[347732485,1736086271011,-500.0,9.589e-05,2]
[347732486,1736086271020,-7862.72,9.589e-05,2]
[347732487,1736086271031,-1992.9,9.589e-05,2]
[347732488,1736086271040,-500.0,9.589e-05,2]
[347732489,1736086271051,-500.0,9.589e-05,2]
[347732490,1736086271060,-876.69,9.589e-05,2]
[347732491,1736086271070,-759.27,9.589e-05,2]
[347732492,1736086271080,-500.0,9.589e-05,2]
[347732493,1736086271089,-500.0,9.589e-05,2]
[347732494,1736086271099,-500.0,9.589e-05,2]
[347732495,1736086271109,-773.96,9.589e-05,2]
[347732496,1736086271118,-731.73,9.589e-05,2]
[347732497,1736086271128,-5451.35,9.589e-05,2]
[347732498,1736086271138,-629.31,9.589e-05,2]
[347732499,1736086271147,-973.18,9.589e-05,2]
[347732500,1736086271156,-1242.03,9.589e-05,2]
[347732501,1736086271166,-500.0,9.589e-05,2]
[347732502,1736086271175,-500.0,9.589e-05,2]
[347732503,1736086271185,-500.0,9.589e-05,2]
[347732504,1736086271194,-1142.45,9.589e-05,2]